[Event "*** Titled Tuesday 3|2 Blitz"]
[Site "Chess.com"]
[Date "2016.09.06"]
[Round "2"]
[White "PowerThinking2650"]
[Black "putinwarrior"]
[Result "0-1"]
[WhiteElo "2155"]
[BlackElo "2341"]
[TimeControl "180+2"]
[EndTime "11:21:59 PDT"]
[Termination "putinwarrior won by resignation"]

1. e4 {[%clk 0:03:01.9]} 1... Nf6 {[%clk 0:02:57.1]} 2. Nc3 {[%clk 0:03:01.8]}
2... d5 {[%clk 0:02:57.3]} 3. e5 {[%clk 0:03:02.6]} 3... Nfd7 {[%clk 0:02:58.4]}
4. d4 {[%clk 0:03:02.8]} 4... c5 {[%clk 0:03:00]} 5. f4 {[%clk 0:03:03.7]} 5...
Nc6 {[%clk 0:02:51.4]} 6. Nf3 {[%clk 0:03:03.9]} 6... cxd4 {[%clk 0:02:34.9]} 7.
Nb5 {[%clk 0:03:04.6]} 7... e6 {[%clk 0:02:34.6]} 8. Nbxd4 {[%clk 0:03:01.7]}
8... Bc5 {[%clk 0:02:35.1]} 9. c3 {[%clk 0:03:01.9]} 9... O-O {[%clk 0:02:35.7]}
10. Be3 {[%clk 0:03:02.4]} 10... Qe7 {[%clk 0:02:35.9]} 11. Bd3 {[%clk 0:03:00]}
11... f6 {[%clk 0:02:34.4]} 12. exf6 {[%clk 0:02:57.3]} 12... Nxf6 {[%clk
0:02:23.5]} 13. O-O {[%clk 0:02:31.5]} 13... Bd7 {[%clk 0:02:05.7]} 14. Ne5
{[%clk 0:02:24.8]} 14... Be8 {[%clk 0:01:54.7]} 15. Qe2 {[%clk 0:02:06.7]} 15...
Bh5 {[%clk 0:01:55.3]} 16. Nexc6 {[%clk 0:01:54]} 16... Qd6 {[%clk 0:01:41.6]}
17. Qc2 {[%clk 0:01:35]} 17... bxc6 {[%clk 0:01:37.1]} 18. h3 {[%clk 0:01:34.3]}
18... Bb6 {[%clk 0:01:35.1]} 19. g4 {[%clk 0:01:34]} 19... Be8 {[%clk
0:01:29.7]} 20. Rae1 {[%clk 0:01:17.7]} 20... c5 {[%clk 0:01:28.7]} 21. Nf3
{[%clk 0:01:08.6]} 21... c4 {[%clk 0:01:20.2]} 22. Bxh7+ {[%clk 0:00:47.3]}
22... Nxh7 {[%clk 0:01:08.9]} 23. Ne5 {[%clk 0:00:47.3]} 23... Rxf4 {[%clk
0:00:35.5]} 24. Rxf4 {[%clk 0:00:27.9]} 24... Qxe5 {[%clk 0:00:36.4]} 25. Qf2
{[%clk 0:00:23.7]} 25... Qd6 {[%clk 0:00:32.1]} 26. Bxb6 {[%clk 0:00:18.8]}
26... axb6 {[%clk 0:00:28.3]} 27. a3 {[%clk 0:00:19.6]} 27... Bg6 {[%clk
0:00:28.1]} 28. h4 {[%clk 0:00:19.7]} 28... Be4 {[%clk 0:00:27.6]} 29. g5 {[%clk
0:00:19.1]} 29... Rf8 {[%clk 0:00:25.2]} 30. Rxf8+ {[%clk 0:00:19.1]} 30... Qxf8
{[%clk 0:00:26.9]} 31. Qxf8+ {[%clk 0:00:18.7]} 31... Nxf8 {[%clk 0:00:26.8]}
32. Kf2 {[%clk 0:00:18.2]} 32... Ng6 {[%clk 0:00:27.5]} 33. Ke3 {[%clk
0:00:18.3]} 33... Nxh4 {[%clk 0:00:28.3]} 34. Kf4 {[%clk 0:00:19.1]} 34... Ng2+
{[%clk 0:00:29.3]} 0-1

[Event "*** Titled Tuesday 3|2 Blitz"]
[Site "Chess.com"]
[Date "2016.09.06"]
[Round "2"]
[White "Mornar1951"]
[Black "Gabrielian_Artur"]
[Result "0-1"]
[WhiteElo "2548"]
[BlackElo "2524"]
[TimeControl "180+2"]
[EndTime "11:22:04 PDT"]
[Termination "Gabrielian_Artur won by checkmate"]

1. d4 {[%clk 0:03:01.9]} 1... Nf6 {[%clk 0:02:59.5]} 2. c4 {[%clk 0:03:02.7]}
2... c5 {[%clk 0:03:00.1]} 3. d5 {[%clk 0:03:03.3]} 3... e6 {[%clk 0:03:01.3]}
4. Nc3 {[%clk 0:03:02.5]} 4... exd5 {[%clk 0:03:02.3]} 5. cxd5 {[%clk
0:03:04.4]} 5... d6 {[%clk 0:03:03.7]} 6. e4 {[%clk 0:03:05.8]} 6... g6 {[%clk
0:03:05.2]} 7. Nf3 {[%clk 0:03:06.7]} 7... Bg7 {[%clk 0:03:06.6]} 8. Be2 {[%clk
0:03:08.4]} 8... O-O {[%clk 0:03:07.1]} 9. O-O {[%clk 0:03:10.1]} 9... Re8
{[%clk 0:03:08.5]} 10. Nd2 {[%clk 0:03:09.7]} 10... Nbd7 {[%clk 0:03:09.4]} 11.
Qc2 {[%clk 0:03:05.9]} 11... Ne5 {[%clk 0:03:10]} 12. Re1 {[%clk 0:03:02.9]}
12... a6 {[%clk 0:03:03.9]} 13. a4 {[%clk 0:03:03]} 13... Rb8 {[%clk 0:03:04.6]}
14. h3 {[%clk 0:02:52.3]} 14... g5 {[%clk 0:03:03.2]} 15. Nf3 {[%clk 0:02:45.8]}
15... Nxf3+ {[%clk 0:03:02.4]} 16. Bxf3 {[%clk 0:02:47.7]} 16... g4 {[%clk
0:03:03.8]} 17. hxg4 {[%clk 0:02:47.5]} 17... Bxg4 {[%clk 0:03:04.5]} 18. Qe2
{[%clk 0:02:40.9]} 18... Qd7 {[%clk 0:02:54.5]} 19. Bg5 {[%clk 0:02:39]} 19...
h5 {[%clk 0:02:51.7]} 20. a5 {[%clk 0:02:23.8]} 20... Nh7 {[%clk 0:02:52.1]} 21.
Bf4 {[%clk 0:02:14.4]} 21... f5 {[%clk 0:02:50.8]} 22. Bxg4 {[%clk 0:02:00.3]}
22... fxg4 {[%clk 0:02:51.3]} 23. Rad1 {[%clk 0:01:55.4]} 23... Be5 {[%clk
0:02:51.3]} 24. Qd2 {[%clk 0:01:48.6]} 24... Qg7 {[%clk 0:02:47.2]} 25. Bxe5
{[%clk 0:01:40.6]} 25... Rxe5 {[%clk 0:02:46.9]} 26. Re3 {[%clk 0:01:25.7]}
26... Rf8 {[%clk 0:02:44.9]} 27. Na4 {[%clk 0:01:21.5]} 27... Ng5 {[%clk
0:02:45.4]} 28. Qe2 {[%clk 0:01:18.6]} 28... Rf4 {[%clk 0:02:33.1]} 29. Nb6
{[%clk 0:01:14.7]} 29... Rfxe4 {[%clk 0:02:24.9]} 30. Nc4 {[%clk 0:01:11.5]}
30... Nf3+ {[%clk 0:01:38.4]} 31. Kh1 {[%clk 0:01:07.1]} 31... Nd4 {[%clk
0:01:28.6]} 32. Rxe4 {[%clk 0:01:00.3]} 32... Nxe2 {[%clk 0:01:25.4]} 33. Nxe5
{[%clk 0:01:01.1]} 33... Nd4 {[%clk 0:01:09]} 34. Nc4 {[%clk 0:01:01.3]} 34...
Qf6 {[%clk 0:00:58.3]} 35. Rde1 {[%clk 0:00:54]} 35... Qxf2 {[%clk 0:00:55]} 36.
Re8+ {[%clk 0:00:54.6]} 36... Kh7 {[%clk 0:00:55.3]} 37. R1e7+ {[%clk
0:00:55.4]} 37... Kh6 {[%clk 0:00:56.1]} 38. Rh8+ {[%clk 0:00:54.3]} 38... Kg5
{[%clk 0:00:55.7]} 39. Nxd6 {[%clk 0:00:38.6]} 39... Qf1+ {[%clk 0:00:51.5]} 40.
Kh2 {[%clk 0:00:39.8]} 40... g3+ {[%clk 0:00:52.4]} 41. Kxg3 {[%clk 0:00:25.6]}
41... Qf4+ {[%clk 0:00:52.4]} 42. Kh3 {[%clk 0:00:27.2]} 42... Qh4# {[%clk
0:00:53.1]} 0-1

[Event "*** Titled Tuesday 3|2 Blitz"]
[Site "Chess.com"]
[Date "2016.09.06"]
[Round "2"]
[White "talaicito"]
[Black "Lali-Rustavi"]
[Result "1-0"]
[WhiteElo "1971"]
[BlackElo "1832"]
[TimeControl "180+2"]
[EndTime "11:22:28 PDT"]
[Termination "talaicito won on time"]

1. e4 {[%clk 0:03:02]} 1... c5 {[%clk 0:03:00.2]} 2. Nf3 {[%clk 0:03:02.7]} 2...
Nc6 {[%clk 0:03:01.2]} 3. d4 {[%clk 0:03:04.3]} 3... cxd4 {[%clk 0:03:02]} 4.
Nxd4 {[%clk 0:03:05.9]} 4... Nf6 {[%clk 0:03:03.1]} 5. Nc3 {[%clk 0:03:06]} 5...
e5 {[%clk 0:03:03.3]} 6. Ndb5 {[%clk 0:03:07.1]} 6... d6 {[%clk 0:03:04.2]} 7.
Bg5 {[%clk 0:03:07.5]} 7... a6 {[%clk 0:03:03.9]} 8. Na3 {[%clk 0:03:08.4]} 8...
b5 {[%clk 0:03:05]} 9. Nd5 {[%clk 0:03:10]} 9... Be7 {[%clk 0:03:06.2]} 10. Bxf6
{[%clk 0:03:10.3]} 10... Bxf6 {[%clk 0:03:07.4]} 11. c3 {[%clk 0:03:12]} 11...
Bg5 {[%clk 0:03:06]} 12. Nc2 {[%clk 0:03:12.6]} 12... O-O {[%clk 0:03:01.9]} 13.
a4 {[%clk 0:03:14]} 13... bxa4 {[%clk 0:03:02.3]} 14. Rxa4 {[%clk 0:03:12.6]}
14... a5 {[%clk 0:03:03.5]} 15. Be2 {[%clk 0:03:11.5]} 15... Rb8 {[%clk
0:03:03.8]} 16. Ra2 {[%clk 0:03:02.2]} 16... Kh8 {[%clk 0:02:56.3]} 17. O-O
{[%clk 0:03:02.4]} 17... f5 {[%clk 0:02:56.8]} 18. Bf3 {[%clk 0:03:02.1]} 18...
fxe4 {[%clk 0:02:51.4]} 19. Bxe4 {[%clk 0:03:03]} 19... Bf5 {[%clk 0:02:52.4]}
20. Bxf5 {[%clk 0:02:33.9]} 20... Rxf5 {[%clk 0:02:52.8]} 21. Qg4 {[%clk
0:02:35.3]} 21... Rf8 {[%clk 0:02:37.2]} 22. g3 {[%clk 0:02:14.7]} 22... Bh6
{[%clk 0:02:01]} 23. Qe6 {[%clk 0:01:58.2]} 23... Re8 {[%clk 0:01:49.3]} 24. Qg4
{[%clk 0:01:48.1]} 24... Ne7 {[%clk 0:01:49]} 25. Nce3 {[%clk 0:01:26]} 25...
Bxe3 {[%clk 0:01:25.5]} 26. Nxe3 {[%clk 0:01:26.4]} 26... d5 {[%clk 0:01:26.7]}
27. Rd1 {[%clk 0:01:25.4]} 27... Rf8 {[%clk 0:00:39.9]} 28. Qe6 {[%clk 0:01:20]}
28... Rb6 {[%clk 0:00:35.7]} 29. Qxe5 {[%clk 0:01:13.6]} 29... Rbf6 {[%clk
0:00:35.4]} 30. f4 {[%clk 0:01:04.4]} 30... Qb6 {[%clk 0:00:31.7]} 31. Qxe7
{[%clk 0:00:56.7]} 31... Rc8 {[%clk 0:00:16.9]} 32. Rd4 {[%clk 0:00:18.3]} 32...
Re6 {[%clk 0:00:16.4]} 33. Qd7 {[%clk 0:00:19.3]} 33... Rd8 {[%clk 0:00:11.5]}
34. Nxd5 {[%clk 0:00:20.2]} 34... Rxd7 {[%clk 0:00:05.9]} 35. Nxb6 {[%clk
0:00:20.2]} 35... Rxd4 {[%clk 0:00:05.7]} 36. cxd4 {[%clk 0:00:21.3]} 1-0

[Event "*** Titled Tuesday 3|2 Blitz"]
[Site "Chess.com"]
[Date "2016.09.06"]
[Round "2"]
[White "jb2mix"]
[Black "LuckyTiger"]
[Result "0-1"]
[WhiteElo "2423"]
[BlackElo "2554"]
[TimeControl "180+2"]
[EndTime "11:22:32 PDT"]
[Termination "LuckyTiger won by resignation"]

1. c4 {[%clk 0:03:02]} 1... c5 {[%clk 0:02:59.2]} 2. g3 {[%clk 0:03:03]} 2... g6
{[%clk 0:03:00.1]} 3. Bg2 {[%clk 0:03:04]} 3... Bg7 {[%clk 0:03:01.7]} 4. Nc3
{[%clk 0:03:05.1]} 4... Nc6 {[%clk 0:02:57.5]} 5. e3 {[%clk 0:03:04.7]} 5... Nh6
{[%clk 0:02:52]} 6. Nge2 {[%clk 0:03:04.6]} 6... Nf5 {[%clk 0:02:53.2]} 7. O-O
{[%clk 0:03:03.9]} 7... d6 {[%clk 0:02:53.6]} 8. a3 {[%clk 0:03:04.3]} 8... a5
{[%clk 0:02:53.2]} 9. Rb1 {[%clk 0:03:04.4]} 9... h5 {[%clk 0:02:53.4]} 10. h3
{[%clk 0:02:59.3]} 10... O-O {[%clk 0:02:47.3]} 11. b3 {[%clk 0:03:00.1]} 11...
e6 {[%clk 0:02:27.4]} 12. Bb2 {[%clk 0:02:58.9]} 12... Bd7 {[%clk 0:02:23.3]}
13. Nb5 {[%clk 0:02:57.7]} 13... Bxb2 {[%clk 0:02:22.8]} 14. Rxb2 {[%clk
0:02:59.6]} 14... a4 {[%clk 0:02:08]} 15. d4 {[%clk 0:02:19.3]} 15... Na5 {[%clk
0:01:59.1]} 16. e4 {[%clk 0:01:58.9]} 16... Nxd4 {[%clk 0:01:51]} 17. Nexd4
{[%clk 0:01:59.4]} 17... cxd4 {[%clk 0:01:52.9]} 18. Nxd6 {[%clk 0:01:57]} 18...
e5 {[%clk 0:01:45.1]} 19. b4 {[%clk 0:01:54.3]} 19... Be6 {[%clk 0:01:46.2]} 20.
c5 {[%clk 0:01:49.5]} 20... Nc4 {[%clk 0:01:45.1]} 21. Nxc4 {[%clk 0:01:44]}
21... Bxc4 {[%clk 0:01:47]} 22. Re1 {[%clk 0:01:35]} 22... h4 {[%clk 0:01:32.9]}
23. Qc1 {[%clk 0:01:20.6]} 23... Bb5 {[%clk 0:01:25.1]} 24. g4 {[%clk
0:01:17.3]} 24... Qf6 {[%clk 0:01:23.3]} 25. f4 {[%clk 0:01:06.5]} 25... Rad8
{[%clk 0:01:10.3]} 26. g5 {[%clk 0:01:00.1]} 26... Qxf4 {[%clk 0:01:08.2]} 27.
Qxf4 {[%clk 0:00:59.8]} 27... exf4 {[%clk 0:01:10.1]} 28. e5 {[%clk 0:01:00.6]}
28... Bc6 {[%clk 0:01:09.6]} 29. Bxc6 {[%clk 0:00:57.7]} 29... bxc6 {[%clk
0:01:11.5]} 30. Re4 {[%clk 0:00:58.9]} 30... Rfe8 {[%clk 0:01:07.1]} 31. Rd2
{[%clk 0:00:57.9]} 31... d3 {[%clk 0:01:05.5]} 32. Kf2 {[%clk 0:00:58.1]} 32...
Rd5 {[%clk 0:01:06.8]} 33. Kf3 {[%clk 0:00:58.7]} 33... Rexe5 {[%clk 0:00:55.6]}
34. Rxe5 {[%clk 0:00:59.5]} 34... Rxe5 {[%clk 0:00:57.5]} 35. Rxd3 {[%clk
0:01:01.2]} 35... Rxg5 {[%clk 0:00:36]} 36. Kxf4 {[%clk 0:01:02.1]} 36... Rg3
{[%clk 0:00:37.6]} 37. Rd6 {[%clk 0:00:34]} 37... Rxh3 {[%clk 0:00:28.4]} 38.
Rxc6 {[%clk 0:00:35]} 38... Rxa3 {[%clk 0:00:30.1]} 39. b5 {[%clk 0:00:36.5]}
39... Rb3 {[%clk 0:00:28.5]} 40. b6 {[%clk 0:00:37.3]} 40... a3 {[%clk
0:00:29.7]} 41. Rc7 {[%clk 0:00:37]} 41... h3 {[%clk 0:00:28.8]} 42. b7 {[%clk
0:00:37]} 42... h2 {[%clk 0:00:29.7]} 43. Rc8+ {[%clk 0:00:20.2]} 43... Kg7
{[%clk 0:00:30.6]} 44. b8=Q {[%clk 0:00:19]} 44... Rxb8 {[%clk 0:00:32]} 45.
Rxb8 {[%clk 0:00:20.4]} 45... h1=Q {[%clk 0:00:33.6]} 0-1

[Event "*** Titled Tuesday 3|2 Blitz"]
[Site "Chess.com"]
[Date "2016.09.06"]
[Round "2"]
[White "IamSchrodingersCat"]
[Black "Boryboy"]
[Result "0-1"]
[WhiteElo "2268"]
[BlackElo "2412"]
[TimeControl "180+2"]
[EndTime "11:22:38 PDT"]
[Termination "Boryboy won by resignation"]

1. e4 {[%clk 0:03:01.9]} 1... e6 {[%clk 0:03:01.9]} 2. d4 {[%clk 0:03:02.5]}
2... d5 {[%clk 0:02:34.4]} 3. Nc3 {[%clk 0:02:53.1]} 3... Bb4 {[%clk 0:02:25.7]}
4. e5 {[%clk 0:02:53.2]} 4... c5 {[%clk 0:02:26.4]} 5. a3 {[%clk 0:02:53.2]}
5... Bxc3+ {[%clk 0:02:27]} 6. bxc3 {[%clk 0:02:55.1]} 6... Ne7 {[%clk
0:02:16.9]} 7. h4 {[%clk 0:02:54.5]} 7... Qa5 {[%clk 0:02:16.7]} 8. Bd2 {[%clk
0:02:53.6]} 8... Qa4 {[%clk 0:02:17.9]} 9. Qg4 {[%clk 0:02:44.7]} 9... Nbc6
{[%clk 0:02:09.9]} 10. Nf3 {[%clk 0:02:37.9]} 10... Qxc2 {[%clk 0:02:05.5]} 11.
Qxg7 {[%clk 0:02:36.4]} 11... Rg8 {[%clk 0:02:06.1]} 12. Qh6 {[%clk 0:02:32.7]}
12... cxd4 {[%clk 0:01:59.2]} 13. cxd4 {[%clk 0:02:28.5]} 13... Qe4+ {[%clk
0:01:59.7]} 14. Qe3 {[%clk 0:01:54.5]} 14... Nf5 {[%clk 0:01:58.7]} 15. Qxe4
{[%clk 0:01:53.8]} 15... dxe4 {[%clk 0:01:57.8]} 16. Ng5 {[%clk 0:01:54.9]}
16... Nfxd4 {[%clk 0:01:56.3]} 17. Rc1 {[%clk 0:01:49.6]} 17... Nb3 {[%clk
0:01:51.7]} 18. Rc3 {[%clk 0:01:46.7]} 18... Nxd2 {[%clk 0:01:52.2]} 19. Kxd2
{[%clk 0:01:48.6]} 19... Nxe5 {[%clk 0:01:52.6]} 20. Nxe4 {[%clk 0:01:47.8]}
20... Ke7 {[%clk 0:01:53.8]} 21. f4 {[%clk 0:01:39.1]} 21... Nc6 {[%clk
0:01:50.8]} 22. g3 {[%clk 0:01:35]} 22... e5 {[%clk 0:01:48.6]} 23. Bb5 {[%clk
0:01:30.8]} 23... exf4 {[%clk 0:01:48.4]} 24. Bxc6 {[%clk 0:01:31.1]} 24... bxc6
{[%clk 0:01:49.5]} 25. gxf4 {[%clk 0:01:31.8]} 25... Be6 {[%clk 0:01:49.6]} 26.
Rxc6 {[%clk 0:00:50.1]} 26... Bd5 {[%clk 0:01:44.9]} 27. Rc7+ {[%clk 0:00:48.9]}
27... Kd8 {[%clk 0:01:41.4]} 28. Rhc1 {[%clk 0:00:41]} 28... Bxe4 {[%clk
0:01:42.1]} 29. Rxf7 {[%clk 0:00:41.8]} 29... Bg6 {[%clk 0:01:36.2]} 30. Rb7
{[%clk 0:00:39.9]} 30... Be8 {[%clk 0:01:15.8]} 31. Rxh7 {[%clk 0:00:31.9]}
31... Rg2+ {[%clk 0:01:07.2]} 32. Ke1 {[%clk 0:00:29.8]} 32... Rg6 {[%clk
0:00:23.2]} 33. Rd1+ {[%clk 0:00:26.5]} 33... Kc8 {[%clk 0:00:24.3]} 34. Rc1+
{[%clk 0:00:27.4]} 34... Bc6 {[%clk 0:00:24.9]} 35. Rh8+ {[%clk 0:00:25]} 35...
Kb7 {[%clk 0:00:26]} 36. Rb1+ {[%clk 0:00:25.6]} 36... Ka6 {[%clk 0:00:25.6]}
37. Rxa8 {[%clk 0:00:20.4]} 37... Bxa8 {[%clk 0:00:27.5]} 38. Kf2 {[%clk
0:00:18.9]} 38... Rg4 {[%clk 0:00:28.4]} 39. Rb3 {[%clk 0:00:16.2]} 39... Rxh4
{[%clk 0:00:29.2]} 40. Kg3 {[%clk 0:00:16.1]} 40... Rh1 {[%clk 0:00:27.7]} 41.
f5 {[%clk 0:00:16.9]} 41... Rf1 {[%clk 0:00:28.9]} 42. Kg4 {[%clk 0:00:17.7]}
42... Be4 {[%clk 0:00:30]} 43. Re3 {[%clk 0:00:13.1]} 43... Bxf5+ {[%clk
0:00:29.7]} 44. Kg5 {[%clk 0:00:15]} 44... Bd7 {[%clk 0:00:29.3]} 0-1

[Event "*** Titled Tuesday 3|2 Blitz"]
[Site "Chess.com"]
[Date "2016.09.06"]
[Round "2"]
[White "NoWuss2"]
[Black "AnastasiaProtopopova"]
[Result "0-1"]
[WhiteElo "2038"]
[BlackElo "2086"]
[TimeControl "180+2"]
[EndTime "11:22:44 PDT"]
[Termination "AnastasiaProtopopova won by checkmate"]

1. Nf3 {[%clk 0:03:01.9]} 1... Nf6 {[%clk 0:03:00.1]} 2. c4 {[%clk 0:03:02.5]}
2... e6 {[%clk 0:03:00.7]} 3. e3 {[%clk 0:03:03.2]} 3... b6 {[%clk 0:02:55.9]}
4. Be2 {[%clk 0:03:02.6]} 4... Bb7 {[%clk 0:02:56.3]} 5. b3 {[%clk 0:03:02]}
5... c5 {[%clk 0:02:56.8]} 6. O-O {[%clk 0:03:02.4]} 6... Be7 {[%clk 0:02:57.7]}
7. Bb2 {[%clk 0:02:58]} 7... O-O {[%clk 0:02:57.6]} 8. d4 {[%clk 0:02:55.7]}
8... d6 {[%clk 0:02:43.2]} 9. Nfd2 {[%clk 0:02:49.3]} 9... Nbd7 {[%clk 0:02:41]}
10. Bf3 {[%clk 0:02:50.4]} 10... d5 {[%clk 0:02:36.8]} 11. Nc3 {[%clk
0:02:48.3]} 11... Rb8 {[%clk 0:02:32.6]} 12. Qc2 {[%clk 0:02:44.8]} 12... a6
{[%clk 0:02:19.4]} 13. Rad1 {[%clk 0:02:42.5]} 13... Bd6 {[%clk 0:02:19.3]} 14.
Rfe1 {[%clk 0:02:32]} 14... Qc7 {[%clk 0:02:07.8]} 15. g3 {[%clk 0:02:21.8]}
15... Rfd8 {[%clk 0:01:41]} 16. Qb1 {[%clk 0:02:01.9]} 16... Be7 {[%clk
0:00:39]} 17. cxd5 {[%clk 0:02:01.5]} 17... exd5 {[%clk 0:00:38.6]} 18. Ne2
{[%clk 0:01:59.4]} 18... c4 {[%clk 0:00:36.2]} 19. bxc4 {[%clk 0:01:31.9]} 19...
dxc4 {[%clk 0:00:35.8]} 20. Bxb7 {[%clk 0:01:32.2]} 20... Rxb7 {[%clk
0:00:35.8]} 21. Nf4 {[%clk 0:01:12.9]} 21... c3 {[%clk 0:00:24]} 22. Rc1 {[%clk
0:01:14.1]} 22... cxd2 {[%clk 0:00:24.1]} 23. Rxc7 {[%clk 0:01:13.9]} 23...
dxe1=Q+ {[%clk 0:00:24.4]} 24. Qxe1 {[%clk 0:01:15.8]} 24... Rxc7 {[%clk
0:00:25.4]} 25. e4 {[%clk 0:01:11.3]} 25... Nf8 {[%clk 0:00:21.2]} 26. Qe2
{[%clk 0:00:56.6]} 26... Rdc8 {[%clk 0:00:20.4]} 27. Qxa6 {[%clk 0:00:43]} 27...
Nxe4 {[%clk 0:00:20]} 28. Qxb6 {[%clk 0:00:41.5]} 28... Rc2 {[%clk 0:00:19.5]}
29. Nd5 {[%clk 0:00:41.9]} 29... Bd8 {[%clk 0:00:19.1]} 30. Qb7 {[%clk
0:00:41.9]} 30... Nxf2 {[%clk 0:00:17.9]} 31. Nc3 {[%clk 0:00:15.8]} 31... Rc7
{[%clk 0:00:10.9]} 32. Qb3 {[%clk 0:00:14.8]} 32... Rd2 {[%clk 0:00:11.2]} 33.
Kf1 {[%clk 0:00:14.9]} 33... Nd3 {[%clk 0:00:11.4]} 34. Ba3 {[%clk 0:00:11.3]}
34... Rxh2 {[%clk 0:00:10.6]} 35. Nd5 {[%clk 0:00:11.8]} 35... Rcc2 {[%clk
0:00:10.2]} 36. Qxd3 {[%clk 0:00:12.1]} 36... Rh1# {[%clk 0:00:09.5]} 0-1

[Event "*** Titled Tuesday 3|2 Blitz"]
[Site "Chess.com"]
[Date "2016.09.06"]
[Round "2"]
[White "nonscitis"]
[Black "ftorodent"]
[Result "1/2-1/2"]
[WhiteElo "2343"]
[BlackElo "2464"]
[TimeControl "180+2"]
[EndTime "11:22:49 PDT"]
[Termination "Game drawn - insufficient material"]

1. e4 {[%clk 0:03:02]} 1... e6 {[%clk 0:03:00.7]} 2. d4 {[%clk 0:02:59.5]} 2...
d5 {[%clk 0:03:01.8]} 3. Nd2 {[%clk 0:02:59.5]} 3... Be7 {[%clk 0:02:59.5]} 4.
Ngf3 {[%clk 0:02:58.4]} 4... Nf6 {[%clk 0:02:58.5]} 5. Bd3 {[%clk 0:02:57.7]}
5... c5 {[%clk 0:02:57.8]} 6. exd5 {[%clk 0:02:57.3]} 6... Qxd5 {[%clk
0:02:57.2]} 7. dxc5 {[%clk 0:02:57.1]} 7... Bxc5 {[%clk 0:02:57.8]} 8. Qe2
{[%clk 0:02:56.4]} 8... O-O {[%clk 0:02:57.4]} 9. Ne4 {[%clk 0:02:56]} 9... Be7
{[%clk 0:02:38]} 10. O-O {[%clk 0:02:54.3]} 10... Nbd7 {[%clk 0:02:33.7]} 11.
Rd1 {[%clk 0:02:53.1]} 11... Qa5 {[%clk 0:02:34]} 12. a3 {[%clk 0:02:43]} 12...
Qc7 {[%clk 0:02:32.1]} 13. b4 {[%clk 0:02:42.6]} 13... b6 {[%clk 0:02:31.1]} 14.
Bb2 {[%clk 0:02:42.3]} 14... Bb7 {[%clk 0:02:32.3]} 15. Nfg5 {[%clk 0:02:40]}
15... h6 {[%clk 0:02:26.3]} 16. Nf3 {[%clk 0:02:28.6]} 16... Nxe4 {[%clk
0:02:25.3]} 17. Bxe4 {[%clk 0:02:28.4]} 17... Bxe4 {[%clk 0:02:25.2]} 18. Qxe4
{[%clk 0:02:29.2]} 18... Bf6 {[%clk 0:02:26.9]} 19. Bd4 {[%clk 0:01:42.7]} 19...
Rac8 {[%clk 0:02:23.8]} 20. Rac1 {[%clk 0:01:36.7]} 20... Qc4 {[%clk 0:02:24.2]}
21. Qe3 {[%clk 0:01:29.1]} 21... Rfd8 {[%clk 0:02:07.4]} 22. h3 {[%clk
0:00:55.9]} 22... Qa2 {[%clk 0:01:42.9]} 23. Bxf6 {[%clk 0:00:48]} 23... Nxf6
{[%clk 0:01:43.9]} 24. Rxd8+ {[%clk 0:00:38.7]} 24... Rxd8 {[%clk 0:01:45]} 25.
Qb3 {[%clk 0:00:38.7]} 25... Qxb3 {[%clk 0:01:32.2]} 26. cxb3 {[%clk 0:00:39.8]}
26... Nd5 {[%clk 0:01:19.5]} 27. Kf1 {[%clk 0:00:35.2]} 27... Kf8 {[%clk
0:01:19.5]} 28. Ne5 {[%clk 0:00:31.1]} 28... a6 {[%clk 0:01:13]} 29. g3 {[%clk
0:00:30.9]} 29... f6 {[%clk 0:01:12.3]} 30. Nd3 {[%clk 0:00:24.6]} 30... Ke7
{[%clk 0:01:11.3]} 31. Ke2 {[%clk 0:00:25.2]} 31... Kd7 {[%clk 0:01:11.2]} 32.
a4 {[%clk 0:00:25.1]} 32... Rc8 {[%clk 0:01:10.9]} 33. Rxc8 {[%clk 0:00:25.9]}
33... Kxc8 {[%clk 0:01:12.1]} 34. Kd2 {[%clk 0:00:26.7]} 34... Kd7 {[%clk
0:01:12.9]} 35. f4 {[%clk 0:00:23.6]} 35... Kc6 {[%clk 0:01:07.9]} 36. g4 {[%clk
0:00:20.9]} 36... g5 {[%clk 0:01:07.2]} 37. fxg5 {[%clk 0:00:21]} 37... hxg5
{[%clk 0:01:08.1]} 38. Ke2 {[%clk 0:00:19.5]} 38... b5 {[%clk 0:01:06.1]} 39.
axb5+ {[%clk 0:00:18.6]} 39... Kxb5 {[%clk 0:01:02.4]} 40. Nc5 {[%clk
0:00:17.8]} 40... Nf4+ {[%clk 0:00:59.8]} 41. Kf3 {[%clk 0:00:18.9]} 41... Kxb4
{[%clk 0:01:00.2]} 42. Nxa6+ {[%clk 0:00:19.7]} 42... Kxb3 {[%clk 0:01:01.6]}
43. h4 {[%clk 0:00:19.3]} 43... Ng6 {[%clk 0:00:58]} 44. hxg5 {[%clk 0:00:19.8]}
44... fxg5 {[%clk 0:00:57.7]} 45. Nc5+ {[%clk 0:00:20.4]} 45... Kc4 {[%clk
0:00:59]} 46. Nxe6 {[%clk 0:00:21.6]} 46... Ne5+ {[%clk 0:01:00.1]} 47. Kg3
{[%clk 0:00:22.4]} 47... Nxg4 {[%clk 0:01:01.3]} 48. Kxg4 {[%clk 0:00:23.7]}
48... Kd5 {[%clk 0:01:02]} 49. Nxg5 {[%clk 0:00:25.6]} 1/2-1/2